[Event "Pan-American Team-ch 2024"]
[Site "McAllen"]
[Date "2024.01.08"]
[Round "4.2"]
[White "Antipov, Mikhail Al."]
[Black "Khanin, Semen"]
[Result "1/2-1/2"]
[ECO "C54"]
[WhiteElo "2604"]
[BlackElo "2558"]
[Annotator "TA"]
[PlyCount "99"]
[EventDate "2024.01.05"]
[EventType "team-tourn"]
[EventCountry "USA"]
[TimeControl "5400+30"]

{[%evp 11,99,8,17,13,37,22,24,12,24,21,20,15,23,14,47,30,65,70,66,64,63,45,49,55,62,46,59,46,53,16,50,39,48,20,50,20,30,29,47,11,10,-50,-26,-31,38,39,40,42,27,47,22,25,326,323,328,325,321,329,399,318,318,318,622,568,615,587,616,571,493,493,493,493,493,493,724,701,711,618,710,689,665,639,535,179,171,0,0,0,164,0]} 1. e4 e5 2. Nf3 Nc6 3. Bc4 Nf6 4. d3 Bc5 5. O-O d6 6. c3 a6 7. a4 {7.Re1 is a critical line. C54: Giuoco Piano: 4 c3 Nf6, main lines with 5 d4 and 5 d3.} Ba7 8. Nbd2 Nh5 9. Nb3 {Threatens to win with Ng5. White has an edge.} Qf6 {[#]} 10. Bg5 $146 ({Predecessor:} 10. Nxe5 Nxe5 11. Qxh5 Bg4 12. Qg5 Be2 13. Qxf6 gxf6 14. Bf4 Nxc4 15. dxc4 Bxc4 16. Nd2 Bxf1 17. Nxf1 {0-1 Vignesh,N (2436)-Wagner,D (2590) Moscow Aeroflot op-A 2020 (5)}) 10... Qg6 {[%cal Oc8h3]} 11. Be3 Bg4 12. Nbd2 Bd7 (12... Bxe3 {simplifies} 13. fxe3 Nf6 14. Qe1 Qh6) 13. d4 O-O 14. Be2 {[%cal Of3e5]} Nf4 15. Bxf4 exf4 16. Ne1 Ne7 17. Nd3 Qg5 18. Nf3 Qh6 19. Re1 Rae8 20. Nd2 Qg5 {Dodges Bg4} 21. Qb3 Bc8 22. a5 (22. e5 {feels hotter.} Nf5 23. Bf3 c6 24. Ne4) 22... Kh8 23. Bf3 {Strongly threatening e5.} Ng6 24. Qd5 Qd8 25. Qh5 (25. e5 {simplifies} dxe5 26. Qxd8 Rxd8 27. Nxe5 Nxe5 28. Rxe5 Rfe8 29. Rae1) 25... c5 26. e5 (26. dxc5 dxc5 27. Be2 f5 $15) (26. d5 $11) 26... dxe5 $1 $15 27. Ne4 {[%cal Bd2e4,Be4g5,Bg5f7][%mdl 32]} (27. Nxc5 $2 Bxc5 28. Nc4 Bd6 29. dxe5 Nxe5 30. Nxe5 Rxe5 31. Rxe5 g6 $19) (27. Nxe5 cxd4 28. Ndc4 Nxe5 29. Rxe5 Be6 $17) 27... cxd4 (27... f6 $15 28. Nexc5 (28. Ndxc5 exd4 29. cxd4 Qxd4 $17) 28... exd4 29. cxd4 (29. Nxb7 Bxb7 30. Bxb7 dxc3 $17) (29. Bxb7 dxc3 30. Bxc8 Qxc8 $15) 29... Qxd4) 28. Ng5 $14 {[%csl Gg5][%cal Rh5h7] A dynamic duo of knights.} h6 {[#]} 29. Nxf7+ $40 {[%mdl 192] Remove Defender. Black needs to defend precisely.} Rxf7 30. Be4 {Dodges Bf5} Re6 31. Bxg6 {[%mdl 64] Overworked Piece} Rxg6 {[%mdl 8192]} 32. Nxe5 $1 $18 {[%mdl 64] Double Attack} (32. Qxg6 Rf6 33. Qe4 (33. Nxe5 Rxg6 34. Nf7+ Kh7 $17) 33... Bf5 34. Qxb7 Bxd3 $16) 32... Rff6 {[%cal Oh8h7] ...Kh7! is the strong threat.} 33. Nxg6+ Kh7 34. Ne7 dxc3 35. Rad1 Qf8 {White must now prevent ...Be6.} 36. bxc3 f3 $2 (36... Be6) 37. g3 Be6 {[#]} 38. Rd6 $1 g6 (38... Bc4 39. Rxf6) 39. Qh4 Qxe7 {[#]} 40. Rdxe6 {[%mdl 512]} Qxe6 41. Rxe6 Rxe6 {[%cal Re6e1][%mdl 4096] Endgame KQ-KRB} 42. Kf1 {Inhibits Re1+. Qb4 would be deadly.} Re2 (42... Kg7 $142 43. Qb4 Rf6 44. Qxb7+ Rf7) 43. Qb4 $1 Rxf2+ 44. Ke1 Be3 45. Qxb7+ (45. Qe7+ Kg8 $11) 45... Kg8 46. Qd5+ (46. Qxa6 Re2+ 47. Kf1 Rf2+ 48. Ke1 Re2+ 49. Kf1 Rf2+ 50. Ke1 $11) 46... Kf8 47. Qd6+ $2 (47. g4 Re2+ 48. Kd1) 47... Kf7 {[#]} 48. Qd7+ $2 ({Not} 48. Qxa6 Re2+ 49. Kf1 Rf2+ 50. Ke1 Re2+ 51. Kf1 Rf2+ 52. Ke1 $11) (48. h4 $1 $18) 48... Kf6 $11 49. Qd6+ $2 (49. Qd8+ $11 Ke6 50. g4 (50. Qe8+ Kd5 $11)) 49... Kf7 $18 {[%emt 1:49:51] [#]} 50. Qd7+ $2 {[%emt 1:55:30] An exciting game.   Weighted Error Value: White=0.31/Black=0.39} ({And not} 50. Qxa6 Re2+ 51. Kf1 Rf2+ 52. Ke1 Re2+ 53. Kf1 Rf2+ 54. Ke1 $11) (50. h4 $1 $18) 1/2-1/2

[Event "Pan-American Team-ch 2024"]
[Site "McAllen"]
[Date "2024.01.08"]
[Round "4.3"]
[White "Matviishen, Viktor"]
[Black "Budisavljevic, Luka"]
[Result "1-0"]
[ECO "A70"]
[WhiteElo "2555"]
[BlackElo "2475"]
[Annotator "TA"]
[PlyCount "53"]
[EventDate "2024.01.05"]
[EventType "team-tourn"]
[EventCountry "USA"]
[TimeControl "5400+30"]

{[%evp 16,53,25,0,41,29,61,0,87,91,141,133,148,146,167,172,174,164,170,139,180,164,230,223,270,273,643,660,690,663,756,763,758,745,678,630,640,639,705,529]} 1. d4 Nf6 2. c4 e6 3. Nc3 c5 4. d5 exd5 5. cxd5 d6 6. e4 g6 7. h3 Bg7 8. Nf3 O-O 9. Be3 b5 {A70: Modern Benoni: 6 e4 g6 7 Nf3.} 10. e5 ({Don't play} 10. Nxb5 Nxe4 11. Qc2 Qa5+ 12. Nd2 Bf5 $15) 10... dxe5 {[#] Strongly threatening ...b4.} 11. Bxc5 $1 $146 {[%mdl 8] An important novelty.} ({Inferior is} 11. Nxb5 e4 12. Nd2 Nxd5 13. Bxc5 e3 $17) (11. Bxb5 $14 Nbd7 12. O-O) ({Predecessor:} 11. Bxb5 e4 12. Ne5 Nh5 13. Nc6 Nxc6 14. dxc6 Qa5 15. a4 a6 16. Be2 Nf6 17. O-O {1-0 Sargissian,G (2664)-Indjic,A (2612) FIDE Grand Swiss 2021 (5)}) 11... Re8 (11... b4 $11 12. Bxb4 Re8) 12. Bxb5 $16 Nbd7 {[#]} (12... Bd7 $142 13. Be2 Bc8) 13. Be3 $1 {White has more active pieces. The black rooks are badly placed.} Rb8 {[%cal Ob8b5]} 14. O-O (14. Bxa7 $2 {is the wrong capture.} Rxb5 15. Nxb5 Qa5+ 16. Nc3 Qxa7 $19) 14... a6 15. Bc6 Rxb2 16. Nd2 Rb8 17. Nc4 Qe7 18. Rb1 {Prevents Qb4.} Rd8 {[#]} (18... Rxb1 $142 19. Qxb1 Rf8) 19. Qa4 $1 $18 h6 20. Qa5 g5 $2 {[#]} (20... Rxb1 21. Rxb1 Re8) 21. Bc5 $1 {[%mdl 576] Deflection. White is clearly winning.} Nxc5 (21... Qxc5 22. Qxd8+) 22. Rxb8 Nce4 23. Nxe4 Nxe4 {[#]} 24. d6 $1 Nxd6 25. Nxd6 Qxd6 26. Bb7 Qd7 {[%emt 1:19:14] [#]} 27. Qxd8+ $3 {[%emt 1:08:44][%mdl 576] Remove Defender. White took control after the opening.   Weighted Error Value: White=0.07 (flawless) /Black=0.60} 1-0

[Event "Pan-American Team-ch 2024"]
[Site "McAllen"]
[Date "2024.01.09"]
[Round "4.4"]
[White "Stearman, Josiah"]
[Black "Risteski, Emil"]
[Result "1-0"]
[ECO "B66"]
[WhiteElo "2455"]
[BlackElo "2375"]
[Annotator "RC"]
[PlyCount "59"]
[EventDate "2024.01.05"]
[EventType "team-tourn"]
[EventCountry "USA"]
[TimeControl "5400+30"]

1. e4 c5 2. Nf3 d6 3. d4 Nf6 4. Nc3 cxd4 5. Nxd4 Nc6 6. Bg5 Qb6 7. Nb3 e6 8. Qd2 a6 9. O-O-O Be7 10. f3 Qc7 11. h4 h6 12. Be3 h5 13. Qf2 b5 14. a3 Rb8 15. Qg3 g6 16. Be2 b4 17. axb4 Nxb4 18. Rd4 Qb6 19. e5 Nxc2 20. Bb5+ axb5 21. Kxc2 b4 22. Rd3 Qb7 23. Na5 Qa6 24. exd6 bxc3 25. dxe7 Nd7 26. Qc7 Rxb2+ 27. Kxc3 Kxe7 28. Bc5+ Ke8 29. Kxb2 Qb5+ {[%emt 1:39:20]} 30. Nb3 {[%emt 1:29:26]} 1-0

[Event "Pan-American Team-ch 2024"]
[Site "McAllen"]
[Date "2024.01.08"]
[Round "4.5"]
[White "Kantor, Gergely"]
[Black "Schitco, Ivan"]
[Result "1-0"]
[ECO "C79"]
[WhiteElo "2531"]
[BlackElo "2521"]
[Annotator "RC"]
[PlyCount "27"]
[EventDate "2024.01.05"]
[EventType "team-tourn"]
[EventCountry "USA"]
[TimeControl "5400+30"]

1. e4 e5 2. Nf3 Nc6 3. Bb5 a6 4. Ba4 Nf6 5. O-O d6 6. Re1 Bd7 7. c3 g6 8. d4 Bg7 9. h3 O-O 10. Bc2 Qe8 11. Nbd2 Nh5 12. Nc4 Kh8 13. Bb1 exd4 {[%emt 0:04:15]} 14. cxd4 {[%emt 1:30:40]} 1-0

[Event "Pan-American Team-ch 2024"]
[Site "McAllen"]
[Date "2024.01.08"]
[Round "4.8"]
[White "Rahul Srivatshav P"]
[Black "Zhurbinsky, David"]
[Result "1-0"]
[ECO "E06"]
[WhiteElo "2454"]
[BlackElo "2098"]
[Annotator "ChessBase"]
[PlyCount "71"]
[EventDate "2024.01.05"]
[EventType "team-tourn"]
[EventCountry "USA"]
[TimeControl "5400+30"]

1. Nf3 Nf6 2. c4 e6 3. g3 d5 4. Bg2 Be7 5. d4 O-O 6. Nc3 dxc4 7. Ne5 Nc6 8. Bxc6 bxc6 9. Nxc6 Qe8 10. Nxe7+ Qxe7 11. Qa4 Bb7 12. f3 e5 13. dxe5 Nd7 14. Bf4 g5 15. Bxg5 Qxg5 16. Qxd7 Rad8 17. Qxc7 Bxf3 18. O-O Qe3+ 19. Rf2 Ba8 20. Qxc4 Rd4 21. Qc7 h5 22. Kf1 h4 23. e6 Qxe6 24. Rd1 Rxd1+ 25. Nxd1 Qd5 26. Ke1 Rd8 27. Qc1 Re8 28. Qf4 hxg3 29. Qxg3+ Kf8 30. Nc3 Qe6 31. Qf4 Qg6 32. Rf1 a6 33. Qb4+ Re7 34. Qd4 Qh6 35. Rf4 Qxh2 {[%emt 1:05:33]} 36. Qd8+ {[%emt 1:09:35]} 1-0

[Event "Pan-American Team-ch 2024"]
[Site "McAllen"]
[Date "2024.01.08"]
[Round "4.9"]
[White "Gazik, Viktor"]
[Black "Koustav Chatterjee"]
[Result "1-0"]
[ECO "C84"]
[WhiteElo "2567"]
[BlackElo "2546"]
[Annotator "RC"]
[PlyCount "127"]
[EventDate "2024.01.05"]
[EventType "team-tourn"]
[EventCountry "USA"]
[TimeControl "5400+30"]

1. e4 e5 2. Nf3 Nc6 3. Bb5 a6 4. Ba4 Nf6 5. O-O Be7 6. d3 b5 7. Bb3 d6 8. Bd2 Bg4 9. c3 Na5 10. Bc2 c5 11. h3 Bh5 12. Bc1 O-O 13. Nbd2 Nc6 14. Re1 d5 15. Qe2 d4 16. g4 Bg6 17. Nf1 Nd7 18. Bb3 Nb6 19. cxd4 Nxd4 20. Nxd4 cxd4 21. f4 exf4 22. Bxf4 Bg5 23. Qd2 Bxf4 24. Qxf4 Qb8 25. Qxb8 Raxb8 26. Nh2 a5 27. Rec1 a4 28. Bd1 f6 29. Nf3 Rfd8 30. Rc7 Bf7 31. a3 Nd7 32. Rac1 Nf8 33. Kf1 Ne6 34. Ra7 Ra8 35. Rxa8 Rxa8 36. Ke1 Nf4 37. Kd2 Rd8 38. h4 Be6 39. g5 fxg5 40. Nxg5 Bd7 41. Rc5 h6 42. Nf3 Be8 43. Ne5 Rd6 44. Bg4 h5 45. Bf5 Kf8 46. Rc8 Ke7 47. Rc7+ Kf8 48. Rc8 Ke7 49. Nf3 b4 50. axb4 g6 51. e5 Rb6 52. Be4 Rxb4 53. Kc2 Bb5 54. Rc7+ Ke8 55. Rc8+ Ke7 56. Rc7+ Ke8 57. Ng5 Rb3 58. e6 Bxd3+ 59. Bxd3 Nxd3 60. Ne4 Nb4+ 61. Kc1 Re3 62. Nd6+ Kf8 63. Rf7+ Kg8 {[%emt 1:55:11]} 64. e7 {[%emt 2:02:30]} 1-0

[Event "Pan-American Team-ch 2024"]
[Site "McAllen"]
[Date "2024.01.08"]
[Round "4.10"]
[White "Brodsky, David"]
[Black "Dudin, Gleb"]
[Result "1-0"]
[ECO "C54"]
[WhiteElo "2492"]
[BlackElo "2533"]
[Annotator "TA"]
[PlyCount "69"]
[EventDate "2024.01.05"]
[EventType "team-tourn"]
[EventCountry "USA"]
[TimeControl "5400+30"]

{[%evp 9,69,0,0,-37,-21,-29,69,63,51,63,94,49,28,3,100,114,136,136,106,130,129,130,214,190,173,0,0,0,100,89,67,64,58,62,144,137,299,286,274,0,270,249,258,156,297,66,177,33,43,56,68,92,431,397,481,499,985,925,892,711,550,469]} 1. e4 e5 2. Nf3 Nc6 3. Bc4 Bc5 4. c3 Nf6 5. d4 exd4 6. b4 {[%cal Bb2b4,Bb4b5,Bb5c6][%mdl 32] C54: Giuoco Piano: 4 c3 Nf6, main lines with 5 d4 and 5 d3.} Be7 7. e5 d5 ({Better is} 7... Ne4 $11) 8. exf6 $14 {White is slightly better.} Bxf6 {[#]} 9. b5 $146 {aiming for Be2.} (9. Qe2+ Be6 10. b5 dxc4 11. bxc6 dxc3 $15) ({Predecessor:} 9. Bb5 Qe7+ 10. Kd2 dxc3+ 11. Nxc3 Bxc3+ {0-1 Gass,U (2045)-Vitenberg,N (2315) Basel Christmas op 2022 (1)}) 9... Nb4 10. Qe2+ (10. Nxd4 $2 dxc4 11. Qe2+ Qe7 12. Qxe7+ Kxe7 $19) 10... Be6 $1 11. Ba3 (11. Nxd4 $2 dxc4 12. Nxe6 fxe6 $19) (11. Bb3 {is more complex.} dxc3 12. a3 d4 13. Nxc3 d3 14. Qd2) 11... c5 (11... dxc4 $11 {remains equal.} 12. Bxb4 d3) 12. bxc6 $1 $16 (12. cxb4 $2 dxc4 13. Qe4 O-O $19) 12... Nxc6 13. Bb5 dxc3 14. O-O $1 {White is more active.} Qa5 15. Ne5 a6 (15... Qc7 $16 {was necessary.} 16. Ng4 d4) 16. Bxc6+ $18 (16. Nxc6 $2 Qxb5 17. Qxb5 axb5 $19) 16... bxc6 {[#]} 17. Bd6 (17. Nxc6 $2 Qb5 18. Qxb5 axb5 $19) (17. f4 $1 $18 {[%cal Rf4f5] And now f5 would win.} g6 18. Qe3 (18. Nxc6 $2 Qb6+ 19. Kh1 Qxc6 $19)) 17... d4 $1 $11 {White must now prevent ...Qd5.} 18. Nd3 (18. Nxc6 $2 Qb6 19. Nxd4 (19. Qe4 $2 Rc8 $19) 19... Bxd4 $19) 18... Ra7 (18... O-O-O $11 19. Bg3 h5) 19. Nc5 Qd8 20. Nxe6 Qxd6 21. Nxg7+ ({Reject} 21. Nxd4+ Re7 22. Nf5 (22. Qxa6 Qxd4 23. Nxc3 O-O $15) 22... Rxe2 $15) 21... Kd8 (21... Kf8 $1 $14 22. Nh5 Rg8) 22. Nf5 $16 d3 $2 (22... Qd5 $16 {is a better defense.} 23. Qd3 h5) 23. Qe3 $18 Qd7 24. Qc5 $2 (24. Qf4 $18 {Strongly threatening Qb8+.} Rc7 25. Nxc3 Bxc3 26. Rab1) 24... Re8 $2 {[%mdl 8192]} (24... c2 $11 {and Black is okay.} 25. Nd2 Bxa1 26. Rxa1 Re8) 25. Nxc3 Bxc3 26. Rad1 {Nd6 is the strong threat.} ({Worse is} 26. Qxc3 Qxf5 27. Rab1 Qd5 $14) 26... Be5 {Dodges Nd6} (26... Re5 $16 27. Qc4 (27. Qxc3 Qxf5 28. Rxd3+ Rd7 $16) 27... d2) 27. Ne3 $2 (27. Rfe1 $18 f6 28. g4) 27... Rb7 (27... Kc8 $14) 28. Qc4 (28. Qa3 $18) 28... d2 $14 29. Qxa6 {[%cal Od1d2]} Rb5 30. a4 {Some like it hot} Rb2 {[%mdl 8192]} (30... Rd5 $16 {is a better chance.}) 31. Nc4 $18 Rc2 {[#]} 32. Nxd2 $1 {[%mdl 64] Decoy. White is clearly winning.} Bd4 (32... Rxd2 $142 33. Qa5+ Bc7 34. Qxd2 Qxd2) 33. Nf3 c5 34. Nxd4 cxd4 {[%emt 1:42:14]} 35. Qf6+ {[%emt 1:48:00] A superb game by Brodsky.   Weighted Error Value: White=0.52/Black=0.78} 1-0

[Event "Pan-American Team-ch 2024"]
[Site "McAllen"]
[Date "2024.01.08"]
[Round "4.11"]
[White "Beradze, Irakli"]
[Black "Escalante Ramirez, Brian"]
[Result "1-0"]
[ECO "D35"]
[WhiteElo "2507"]
[BlackElo "2500"]
[Annotator "ChessBase"]
[PlyCount "30"]
[EventDate "2024.01.05"]
[EventType "team-tourn"]
[EventCountry "USA"]
[TimeControl "5400+30"]

1. Nf3 d5 2. d4 Nf6 3. c4 e6 4. Nc3 Nbd7 5. cxd5 exd5 6. Bg5 h6 7. Bf4 Nb6 8. Qd2 Bd6 9. Bxd6 Qxd6 10. e3 O-O 11. Bd3 Be6 12. a3 c6 13. b4 a5 14. Rb1 axb4 15. axb4 {[%emt 0:02:30]} Nbd7 {[%emt 1:27:19]} 1-0

[Event "Pan-American Team-ch 2024"]
[Site "McAllen"]
[Date "2024.01.08"]
[Round "4.12"]
[White "Juksta, Karolis"]
[Black "Rodrigue-Lemieux, Shawn"]
[Result "1/2-1/2"]
[ECO "D38"]
[WhiteElo "2416"]
[BlackElo "2502"]
[Annotator "RC"]
[PlyCount "67"]
[EventDate "2024.01.05"]
[EventType "team-tourn"]
[EventCountry "USA"]
[TimeControl "5400+30"]

1. d4 Nf6 2. c4 e6 3. Nf3 d5 4. Nc3 Bb4 5. Bg5 h6 6. Bxf6 Qxf6 7. e3 O-O 8. Rc1 dxc4 9. Bxc4 c5 10. O-O cxd4 11. Ne4 Qe7 12. a3 Ba5 13. exd4 Rd8 14. Rc2 Bd7 15. Re2 Bc6 16. Qc2 Bb6 17. Rfe1 Bxe4 18. Rxe4 Qf8 19. Rxe6 Nc6 20. Rxc6 bxc6 21. Ne5 Re8 22. Re4 Rxe5 23. dxe5 Kh8 24. Rf4 Qc5 25. Rf5 Qa5 26. g3 Qe1+ 27. Kg2 Re8 28. Rxf7 Qxe5 29. Qg6 Qg5 30. Rxg7 Qxg6 31. Rxg6 Rd8 32. Rxh6+ Kg7 33. Re6 Rd4 {[%emt 1:43:42]} 34. b3 {[%emt 1:37:43]} 1/2-1/2

[Event "Pan-American Team-ch 2024"]
[Site "McAllen"]
[Date "2024.01.08"]
[Round "5.1"]
[White "Oparin, Grigoriy"]
[Black "Schitco, Ivan"]
[Result "1/2-1/2"]
[ECO "C50"]
[WhiteElo "2664"]
[BlackElo "2521"]
[Annotator "TA"]
[PlyCount "94"]
[EventDate "2024.01.05"]
[EventType "team-tourn"]
[EventCountry "USA"]
[TimeControl "5400+30"]

{[%evp 9,94,36,32,14,30,6,3,5,4,4,5,4,23,25,22,22,29,16,16,16,34,17,25,8,4,0,1,0,7,0,0,0,0,0,0,0,0,0,0,0,0,0,0,0,0,-8,0,-15,-5,-5,0,-19,-19,-23,-24,-24,-20,-23,-19,-19,-16,-49,-24,-49,-49,-59,-59,-59,-52,-52,-52,-52,-52,-59,-38,-38,-38,-38,-38,-38,-38,-38,-38,-38,0,-38,0]} 1. e4 e5 2. Nf3 Nc6 3. Bc4 d6 4. O-O Be7 5. a4 Be6 6. d3 {[%cal Bd2d3,Bd3c4,Bc4d5][%mdl 32] C50: Hungarian Defence and Giuoco Pianissimo.} Nf6 7. Nc3 O-O 8. Re1 {The position is equal.} Bxc4 9. dxc4 a5 10. Nd5 {[#]} Nxd5 $146 ({Predecessor:} 10... b6 11. h3 Nb8 12. Qd3 Na6 13. Be3 Nd7 14. c3 Nac5 15. Qc2 Ne6 16. b4 Kh8 {1-0 Drygalov,A (2475)-Dubov,D (2716) Titled Tuesday intern op 15th Aug Early blitz 2023 (7)}) 11. cxd5 Nb8 12. Qd3 Qc8 13. b3 f5 14. Ba3 fxe4 15. Rxe4 Nd7 16. Rae1 Rf7 17. R4e2 Nf8 18. Bc1 Qd7 19. Re4 Ng6 20. Ng5 Bxg5 21. Bxg5 Raf8 22. f3 b6 23. Rg4 Rf5 24. Bd2 Qf7 25. Rg5 Rxg5 26. Bxg5 h6 27. Be3 Ne7 28. c4 Qf6 29. Qe4 g5 30. Qg4 Nf5 31. Bf2 Kh7 32. Rf1 Qg6 33. Qe4 Ne7 {[%cal Bf5e7,Be7g8,Bg8f6][%mdl 32]} 34. Qxg6+ Kxg6 $11 {[%mdl 4096] Endgame KRB-KRN} 35. h3 Ng8 36. Be3 Nf6 37. g4 Nd7 38. Kf2 {[%cal Oh3h4]} Nc5 39. Bxc5 bxc5 $15 {KR-KR} 40. Re1 h5 41. Re4 hxg4 42. hxg4 Rh8 (42... Rb8 $5 43. Re3 $8 Rh8 $11) 43. Kg2 Kf7 (43... Rb8 $5 44. Re3 $8 Kf7 $11) 44. Re1 Kf6 45. Kg3 Rb8 46. Re3 Rh8 47. Re1 $1 {[%emt 0:05:32]} Rb8 {[%emt 1:54:00] Weighted Error Value: White=0.05 (flawless) /Black=0.04 (flawless)} 1/2-1/2

[Event "Pan-American Team-ch 2024"]
[Site "McAllen"]
[Date "2024.01.08"]
[Round "5.2"]
[White "Macovei, Andrei"]
[Black "Antipov, Mikhail Al."]
[Result "1/2-1/2"]
[ECO "C67"]
[WhiteElo "2460"]
[BlackElo "2604"]
[Annotator "TA"]
[PlyCount "37"]
[EventDate "2024.01.05"]
[EventType "team-tourn"]
[EventCountry "USA"]
[TimeControl "5400+30"]

{[%evp 18,37,13,17,18,-12,-12,-12,-7,-19,-20,-20,-18,-20,-20,-11,-10,-15,-8,-8,-8,-8]} 1. e4 e5 2. Nf3 Nc6 3. Bb5 Nf6 4. O-O {[%cal Bh1f1,Bf1e1,Be1e5][%mdl 32]} Nxe4 5. Re1 Nd6 6. Nxe5 Be7 {[%cal Bf8e7,Be7f6,Bf6d4][%mdl 32]} 7. Bf1 Nxe5 8. Rxe5 O-O 9. d4 Bf6 10. Re1 {The position is equal.} Re8 {10...Re8 scores better than 10...Nf5. C67: Ruy Lopez: Berlin Defence: 4 0-0 Nxe4.} 11. Nc3 Rxe1 12. Qxe1 Bxd4 13. Nd5 {[#] Strongly threatening Bf4.} b6 $5 $146 {[%mdl 8] An interesting novelty.} ({Predecessor:} 13... c6 14. Ne7+ Kf8 15. Nxc8 Nxc8 16. Qb4+ c5 17. Qxb7 Ne7 18. c3 Bf6 19. Be3 d6 {1-0 Fiorito,F (2291)-Bjelobrk,I (2405) Titled Tuesday intern op 06th Sep Late blitz 2022 (1)}) 14. Bf4 Bb7 15. Rd1 Bxb2 16. Qb4 {[%csl LRb2,LRd6] Wards off Ba3. Threatens to win with Nxc7.} Bf6 {Threatening ...Bxd5.} 17. Bxd6 Bxd5 18. Rxd5 {[#] Hoping for Be5.} cxd6 {[%emt 1:01:00]} 19. Qxd6 {[%emt 0:06:43] An uneventful encounter.   Weighted Error Value: White=0.04 (flawless) /Black=0.00 (flawless)} 1/2-1/2

[Event "Pan-American Team-ch 2024"]
[Site "McAllen"]
[Date "2024.01.08"]
[Round "5.3"]
[White "Raja Harshit"]
[Black "Daggupati, Balaji"]
[Result "1/2-1/2"]
[ECO "B22"]
[WhiteElo "2508"]
[BlackElo "2486"]
[Annotator "ChessBase"]
[PlyCount "106"]
[EventDate "2024.01.05"]
[EventType "team-tourn"]
[EventCountry "USA"]
[TimeControl "5400+30"]

1. e4 c5 2. Nf3 e6 3. c3 d5 4. exd5 Qxd5 5. d4 Nf6 6. Na3 Nc6 7. Be3 cxd4 8. Nb5 Qd7 9. Nbxd4 Bd6 10. Nxc6 bxc6 11. Bd4 Be7 12. Qa4 Qc7 13. Ne5 Bb7 14. Nc4 O-O 15. Be5 Qc8 16. Be2 c5 17. O-O Qc6 18. Qxc6 Bxc6 19. Na5 Bd5 20. c4 Nd7 21. cxd5 Nxe5 22. dxe6 fxe6 23. f4 Ng6 24. g3 Bf6 25. Nc4 Bd4+ 26. Kg2 e5 27. f5 Ne7 28. Bd3 Rab8 29. Rae1 Nd5 30. Re2 Rfe8 31. Rfe1 Kf8 32. Kf3 Re7 33. h4 Rb4 34. Rc2 Nb6 35. b3 Nxc4 36. Bxc4 a5 37. a4 Rb6 38. g4 g6 39. Rg2 Rg7 40. Ree2 gxf5 41. gxf5 Rh6 42. Re4 Rxg2 43. Kxg2 Bc3 44. Be6 Ke7 45. Kf3 Kf6 46. Kg4 Kg7 47. Kh3 Kf6 48. Kg3 Rh5 49. Kf3 Rh6 50. Ke2 Bd4 51. Rg4 Bc3 52. Re4 Bd4 53. Kf3 {[%emt 1:55:17]} Bc3 {[%emt 1:53:49]} 1/2-1/2

[Event "Pan-American Team-ch 2024"]
[Site "McAllen"]
[Date "2024.01.08"]
[Round "5.4"]
[White "Rahul Srivatshav P"]
[Black "Stearman, Josiah"]
[Result "0-1"]
[ECO "D27"]
[WhiteElo "2454"]
[BlackElo "2455"]
[Annotator "ChessBase"]
[PlyCount "92"]
[EventDate "2024.01.05"]
[EventType "team-tourn"]
[EventCountry "USA"]
[TimeControl "5400+30"]

1. d4 d5 2. c4 dxc4 3. Nf3 Nf6 4. e3 e6 5. Bxc4 a6 6. O-O c5 7. Nc3 Nc6 8. a4 Be7 9. Qe2 cxd4 10. Rd1 O-O 11. exd4 Nb4 12. Bg5 Nfd5 13. Nxd5 Nxd5 14. Bxe7 Nxe7 15. Ne5 b6 16. Qe4 Ra7 17. Bd3 g6 18. h4 Bb7 19. Qg4 h5 20. Qg3 Bd5 21. Rac1 b5 22. axb5 axb5 23. Rc5 b4 24. Rdc1 Kg7 25. Qf4 Ba8 26. Kh2 Nd5 27. Qg3 Qf6 28. Be4 Nf4 29. Re1 Bxe4 30. Rxe4 Nd5 31. Nd3 Ra1 32. Nf4 Qf5 33. f3 Rd8 34. Rb5 Rd1 35. Rb7 Kg8 36. Nh3 Rd2 37. b3 Rf8 38. Ra7 Nc3 39. Re5 Qf6 40. Rxh5 Ne2 41. Qe5 Qxe5+ 42. Rxe5 Nxd4 43. Re3 Rc8 44. Ng5 Rcc2 45. Re4 Rxg2+ 46. Kh3 {[%emt 1:43:34]} Nf5 {[%emt 1:44:07]} 0-1

[Event "Pan-American Team-ch 2024"]
[Site "McAllen"]
[Date "2024.01.09"]
[Round "5.5"]
[White "Gledura, Benjamin"]
[Black "Marek, Matyas"]
[Result "1/2-1/2"]
[ECO "A40"]
[WhiteElo "2633"]
[BlackElo "2340"]
[Annotator "RC"]
[PlyCount "85"]
[EventDate "2024.01.05"]
[EventType "team-tourn"]
[EventCountry "USA"]
[TimeControl "5400+30"]

1. c4 c5 2. Nf3 g6 3. d4 cxd4 4. Nxd4 Bg7 5. e4 Qb6 6. Nb5 a6 7. Be3 Qa5+ 8. N5c3 Nc6 9. Be2 d6 10. O-O Nf6 11. Nd2 O-O 12. a3 Be6 13. h3 Rab8 14. b4 Qd8 15. Rc1 Nd7 16. Nb3 f5 17. exf5 gxf5 18. f4 Nf6 19. Re1 Bf7 20. Bd3 Bg6 21. Qc2 Qd7 22. Rcd1 Kh8 23. Be2 Qe6 24. Bf1 Qf7 25. b5 Nd8 26. c5 Rc8 27. bxa6 bxa6 28. Nd2 a5 29. Nc4 Nb7 30. Nb6 Rxc5 31. Bxc5 Nxc5 32. Bc4 Qe8 33. Nbd5 Nfe4 34. Nxe4 fxe4 35. Rf1 e6 36. Ne3 Qe7 37. Kh1 Nd3 38. f5 exf5 39. Bxd3 exd3 40. Qd2 Qe4 41. Rfe1 f4 42. Ng4 Qb7 {[%emt 1:48:59]} 43. Nf2 {[%emt 1:51:34]} 1/2-1/2